[Event "44th Chess Olympiad Women 2022"]
[Site "Chennai"]
[Date "2022.07.29"]
[Round "1.49"]
[White "De Rycke, Tyani"]
[Black "Sisior, Angelil"]
[Result "1-0"]
[ECO "B24"]
[WhiteElo "1994"]
[BlackElo "1488"]
[Annotator "TA"]
[PlyCount "65"]
[EventDate "2022.07.29"]
[EventType "team-tourn"]
[EventCountry "IND"]
[SourceTitle "playchess.com"]
[Source "ChessBase"]
[SourceQuality "1"]
[WhiteTeam "Belgium"]
[BlackTeam "PLW"]
[WhiteTeamCountry "BEL"]
[TimeControl "40/5400+30:1800+30"]

{[%evp 9,65,27,49,10,14,8,43,15,27,20,24,7,30,31,38,-4,-14,-41,0,-14,0,0,95,75,89,91,221,216,575,566,722,731,726,720,797,783,769,788,791,800,783,804,986,987,968,965,973,976,1188,1137,29986,1477,29991,29992,29997,29995,29998,29999]} 1. e4 {[%emt 0:00:03]} b6 {[%emt 0:00:15]} 2. Nc3 {[%emt 0:00:10]} c5 {[%emt 0:00:30]} 3. g3 {[%emt 0:00:08]} Nc6 {[%emt 0:00:48]} 4. Bg2 {[%emt 0:00:10]} e5 {[%emt 0:01:33]} 5. d3 {[%emt 0:00:28] [#]} Be7 $146 {[%emt 0:01:13]} ({Predecessor:} 5... Nf6 6. Nge2 h6 7. O-O Be7 8. f4 d6 9. h3 Bd7 10. Be3 Qc8 11. f5 Nd4 {1-0 (22) Serpa,R (2073)-Rovedo,S (1780) Rio de Janeiro 2015}) 6. Be3 {[%emt 0:00:15] B24: Closed Sicilian: 3 g3 sidelines.} Nf6 {[%emt 0:00:18]} 7. h3 {[%emt 0:00:13]} Ba6 {[%emt 0:01:17]} 8. Qd2 {[%emt 0:03:06] White is slightly better.} O-O {[%emt 0:02:01]} 9. Nge2 {[%emt 0:00:15]} b5 {[%emt 0:00:55][%cal Bb6b5,Bb5b4][%mdl 32]} 10. O-O {[%emt 0:01:31]} d6 {[%emt 0:01:00][%cal Bd7d6,Bd6d5][%mdl 32]} (10... b4 $5 {[%cal Rb4c3]} 11. Nd5 Nxd5 12. exd5 Nd4 $11) 11. f4 {[%emt 0:00:29]} Nd4 {[%emt 0:02:01]} 12. f5 {[%emt 0:00:46]} b4 {[%emt 0:06:28]} 13. Nd1 {[%emt 0:03:26]} Bb7 {[%emt 0:03:58]} 14. g4 {[%emt 0:00:57][%cal Bg3g4,Bg4g5][%mdl 32]} d5 {[%emt 0:04:42][%cal Rd5e4]} 15. Ng3 {[%emt 0:01:23] Hoping for g5.} Kh8 {[%emt 0:06:54]} (15... dxe4 $11 {remains equal.} 16. Nxe4 Nxe4 17. Bxe4 Bxe4 18. dxe4 a5) 16. g5 $16 {[%emt 0:01:00]} Ng8 {[%emt 0:00:34]} 17. c3 {[%emt 0:00:18]} Nb5 {[%emt 0:03:44] A mistake that costs the game.} (17... dxe4 $16 18. Bxe4 (18. cxd4 cxd4 19. Bf2 e3 $11) 18... Bxe4 19. Nxe4 Nb5) 18. exd5 $18 {[%emt 0:01:03]} Nd4 $2 {[%emt 0:07:28]} (18... Nd6 {is more resistant.} 19. c4 (19. Bxc5 Bxg5 20. Qf2 Bh4 $16) 19... f6) 19. d6 {[%emt 0:06:32]} Bxg2 {[%emt 0:00:55]} 20. dxe7 {[%emt 0:00:12]} ({Less strong is} 20. Kxg2 bxc3 21. bxc3 Bxd6 22. cxd4 cxd4 $18) 20... Nxe7 {[%emt 0:04:14]} 21. Qxg2 {[%emt 0:00:12]} Nd5 {[%emt 0:06:13]} 22. cxd4 {[%emt 0:00:36]} cxd4 {[%emt 0:00:10]} 23. Bd2 {[%emt 0:01:16]} Rc8 {[%emt 0:02:44]} 24. Rc1 {[%emt 0:00:35]} Rxc1 {[%emt 0:00:33]} 25. Bxc1 {[%emt 0:00:08]} Qa5 {[%emt 0:00:12]} 26. f6 {[%emt 0:01:15]} g6 {[%emt 0:00:20]} 27. Qe4 {[%emt 0:01:04]} Re8 {[%emt 0:06:17]} 28. h4 {[%emt 0:00:42][%cal Bh3h4,Bh4h5][%mdl 32]} Re6 {[%emt 0:03:20]} 29. h5 {[%emt 0:00:48] White wants to mate with hxg6.} Qc7 {[%emt 0:01:05] [#]} 30. Qxd5 {[%emt 0:00:35]} (30. hxg6 $142 $1 hxg6 31. Qh1+ Kg8 {[#]} 32. Qh6 $1 Rxf6 33. gxf6 Nxf6 34. Rxf6 Qc8 35. Rxg6+ $1 {[%mdl 512]} fxg6 36. Qxg6+ Kf8 37. Nf5 $1) 30... Re8 {[%emt 0:00:59] [#]} 31. hxg6 $1 {[%emt 0:00:22] White mates.} hxg6 {[%emt 0:00:15]} (31... fxg6 32. f7) 32. Qh1+ {[%emt 0:00:08]} Kg8 {[%emt 0:00:13] [#]} 33. Qh6 $1 {[%emt 0:00:06] Weighted Error Value: White=0.08 (flawless) /Black=0.56} 1-0

[Event "44th Chess Olympiad Women 2022"]
[Site "Chennai"]
[Date "2022.07.29"]
[Round "1.49"]
[White "Sisior, Destiny"]
[Black "Barbier, Wiebke"]
[Result "0-1"]
[ECO "C41"]
[WhiteElo "1298"]
[BlackElo "1970"]
[Annotator "TA"]
[PlyCount "60"]
[EventDate "2022.07.29"]
[EventType "team-tourn"]
[EventCountry "IND"]
[SourceTitle "playchess.com"]
[Source "ChessBase"]
[SourceQuality "1"]
[WhiteTeam "PLW"]
[BlackTeam "Belgium"]
[BlackTeamCountry "BEL"]
[TimeControl "40/5400+30:1800+30"]

{[%evp 10,59,25,12,24,-10,-10,-70,-22,-49,-51,-57,-8,-192,-188,-206,-208,-214,-34,-68,-53,-56,-50,-283,-274,-481,-453,-418,-440,-481,-479,-480,-411,-431,-379,-383,-296,-531,-522,-723,-688,-1144,-1208,-1193,-1005,-29993,-29994,-29994,-29995,-29997,-29998,-29999]} 1. e4 {[%emt 0:00:07]} d6 {[%emt 0:00:01]} 2. Nf3 {[%emt 0:00:28]} Nf6 {[%emt 0:00:06]} 3. Nc3 {[%emt 0:00:18]} e5 {[%emt 0:00:06]} 4. Bc4 {[%emt 0:00:52]} Be7 {[%emt 0:00:24]} 5. d4 {[%emt 0:00:41]} Nbd7 {[%emt 0:01:59]} 6. Be3 {[%emt 0:01:27][%cal Oc4f7]} O-O {[%emt 0:00:16] C41: Philidor Defence.} 7. Qd2 {[%emt 0:00:33]} c6 {[%emt 0:00:13]} 8. d5 {[%emt 0:01:13] [#]} (8. a4 $11) 8... Ng4 $146 {[%emt 0:04:43]} (8... b5 $15 9. Bb3 b4) ({Predecessor:} 8... b5 9. Bb3 Ng4 10. Bg5 h6 11. h3 Bxg5 12. Nxg5 Ngf6 13. Nf3 a5 14. a3 a4 {1-0 (55) Kubovics,L (1000)-Jurky,M (1432) Liptovsky Mikulas 2016}) 9. h3 {[%emt 0:02:27]} Nxe3 {[%emt 0:00:05]} 10. Qxe3 {[%emt 0:00:04]} Nf6 {[%emt 0:00:34]} (10... Qb6 $15 {is more appropriate.}) 11. O-O-O $2 {[%emt 0:01:38] [#]} (11. a4 $11) 11... b5 $19 {[%emt 0:00:59][%cal Bb7b5,Bb5b4][%mdl 32]} 12. Bd3 {[%emt 0:01:05]} b4 {[%emt 0:00:23]} 13. Ne2 {[%emt 0:01:49]} c5 {[%emt 0:00:36]} (13... cxd5 $19 14. exd5 Bb7) 14. c3 {[%emt 0:01:03]} a5 {[%emt 0:01:52]} 15. g4 {[%emt 0:01:17]} a4 {[%emt 0:04:44]} 16. Nh4 $2 {[%emt 0:00:43] Black continues to play with concentration.} (16. Kb1 $15) 16... Nxd5 {[%emt 0:05:16]} 17. Qf3 {[%emt 0:00:47]} (17. exd5 {was forced.} Bxh4 18. Kb1) 17... Nxc3 {[%emt 0:01:23]} ({Don't go for} 17... Bxh4 $2 18. exd5 f5 19. gxf5 $19) 18. bxc3 {[%emt 0:01:09]} Bxh4 {[%emt 0:00:06]} 19. c4 {[%emt 0:00:45]} Be6 {[%emt 0:01:47]} 20. Ng3 {[%emt 0:02:44]} Bg5+ {[%emt 0:01:47]} 21. Kb2 {[%emt 0:00:33]} a3+ {[%emt 0:00:49]} 22. Ka1 {[%emt 0:00:53]} Qa5 {[%emt 0:00:42][%cal Ob4b3] [#] ...b3! is the strong threat.} 23. Bc2 {[%emt 0:00:51]} (23. Be2 {was called for.}) 23... Bxc4 {[%emt 0:01:02]} 24. Rxd6 {[%emt 0:00:45]} Rad8 {[%emt 0:00:35]} 25. Rhd1 {[%emt 0:00:28]} Rxd6 {[%emt 0:02:20]} 26. Rxd6 {[%emt 0:00:58]} Rd8 {[%emt 0:00:10]} 27. Rd1 {[%emt 0:00:54]} Rxd1+ {[%emt 0:03:20] Black mates.} 28. Bxd1 {[%emt 0:00:36]} Qd8 {[%emt 0:00:18]} 29. Nf1 {[%emt 0:04:10]} Qd4+ {[%emt 0:00:12]} 30. Kb1 {[%emt 0:01:48]} Qb2# {[%emt 0:00:06] Weighted Error Value: White=1.12/Black=0.28 (precise)} 0-1

[Event "44th Chess Olympiad Women 2022"]
[Site "Chennai"]
[Date "2022.07.29"]
[Round "1.49"]
[White "Magno, Angelica"]
[Black "Vanduyfhuys, Daria"]
[Result "0-1"]
[ECO "E04"]
[WhiteElo "1211"]
[BlackElo "2094"]
[Annotator "TA"]
[PlyCount "50"]
[EventDate "2022.07.29"]
[EventType "team-tourn"]
[EventCountry "IND"]
[SourceTitle "playchess.com"]
[Source "ChessBase"]
[SourceQuality "1"]
[WhiteTeam "PLW"]
[BlackTeam "Belgium"]
[BlackTeamCountry "BEL"]
[TimeControl "40/5400+30:1800+30"]

{[%evp 10,50,32,20,68,48,88,52,52,59,46,16,4,-48,-44,-100,-93,-107,-112,-149,-79,-52,-51,-92,-103,-429,-443,-439,-402,-406,-403,-672,-676,-686,-679,-731,-731,-761,-752,-754,-752,-1508,-1469]} 1. d4 {[%emt 0:00:06]} d5 {[%emt 0:00:23]} 2. c4 {[%emt 0:00:23]} e6 {[%emt 0:00:08]} 3. Nf3 {[%emt 0:00:20]} Nf6 {[%emt 0:01:15]} 4. g3 {[%emt 0:01:03]} dxc4 {[%emt 0:00:30]} 5. Bg2 {[%emt 0:00:53]} Bb4+ {[%emt 0:06:32]} 6. Bd2 {[%emt 0:00:37]} Nd5 {[%emt 0:05:21] E04: Open Catalan: 5 Nf3.} (6... Be7 $11) 7. O-O {[%emt 0:01:00]} Nc6 {[%emt 0:02:12][%cal Bb8c6,Bc6b4,Bb4c2][%mdl 32]} 8. e4 {[%emt 0:02:03]} Nb6 {[%emt 0:00:20] [#] White is slightly better.} 9. Bxb4 $146 {[%emt 0:09:40]} ({Predecessor:} 9. Be3 O-O 10. Qc2 Be7 11. Rd1 Bd7 12. Nc3 Rc8 13. Qe2 Qe8 14. h4 Nb4 15. Ne5 {1-0 (42) Batsiashvili,N (2460)-Sosa Suarez,C (2063) Vecindario 2020}) 9... Nxb4 {[%emt 0:00:07]} 10. Qe2 {[%emt 0:03:35]} O-O {[%emt 0:03:03][%cal Oe6e5]} 11. Nbd2 {[%emt 0:00:19]} (11. Na3 $11) 11... Nc2 $1 $15 {[%emt 0:01:05][%csl LRa1,LRd4]} 12. Rad1 {[%emt 0:00:57]} ({Better is} 12. Rac1 $15 Nxd4 13. Nxd4 Qxd4 14. Nxc4) 12... Nxd4 $17 {[%emt 0:01:08] Black is more active.} 13. Nxd4 {[%emt 0:00:50]} Qxd4 {[%emt 0:00:06]} 14. Nb3 {[%emt 0:11:38]} Qf6 {[%emt 0:01:50]} (14... Qe5 $142 15. f4 Qb5) 15. e5 {[%emt 0:04:48]} Qe7 {[%emt 0:00:38]} 16. Na5 {[%emt 0:01:31][%csl LRb7,LRc4]} Qb4 {[%emt 0:07:43]} 17. Nxb7 {[%emt 0:05:26][%mdl 8192] Loses the game.} (17. Qd2 $17 {is tougher.} Qb5 18. Rfe1) 17... Nd5 $1 $19 {[%emt 0:00:54]} 18. a3 {[%emt 0:04:50]} Qxb7 {[%emt 0:00:41]} 19. Qxc4 {[%emt 0:08:12]} Qb6 {[%emt 0:02:47] [#] White must now prevent ...Ba6.} 20. Rd2 {[%emt 0:06:14]} (20. Rfe1 $142) 20... Ba6 {[%emt 0:00:11] Black is clearly winning.} 21. Qc1 {[%emt 0:06:21]} Bxf1 {[%emt 0:00:10]} 22. Qxf1 {[%emt 0:00:18]} Rad8 {[%emt 0:00:43]} 23. Qe1 {[%emt 0:04:21]} Rd7 {[%emt 0:00:35]} 24. Bf3 {[%emt 0:01:33]} Rfd8 {[%emt 0:00:20]} 25. Kg2 {[%emt 0:00:58] [#]} Nf4+ $1 {[%emt 0:00:21] Weighted Error Value: White=0.70/Black=0.13 (very precise)} 0-1

[Event "44th Chess Olympiad Women 2022"]
[Site "Chennai"]
[Date "2022.07.29"]
[Round "1.50"]
[White "Rogule, Laura"]
[Black "Alazmi, Amani"]
[Result "1-0"]
[ECO "A25"]
[WhiteElo "2292"]
[BlackElo "1506"]
[Annotator "TA"]
[PlyCount "81"]
[EventDate "2022.07.29"]
[EventType "team-tourn"]
[EventCountry "IND"]
[SourceTitle "playchess.com"]
[Source "ChessBase"]
[SourceQuality "1"]
[WhiteTeam "Latvia"]
[BlackTeam "Kuwait"]
[WhiteTeamCountry "LAT"]
[BlackTeamCountry "KUW"]
[TimeControl "40/5400+30:1800+30"]

{[%evp 11,80,16,32,25,22,25,26,11,18,10,20,30,41,33,43,6,30,29,147,37,43,20,159,152,135,140,131,132,187,107,79,71,59,28,25,12,12,0,118,77,149,157,144,145,153,133,181,192,243,232,301,279,259,0,236,219,219,158,248,0,254,240,251,250,497,487,29986,29987,29988,29989,29999]} 1. c4 {[%emt 0:00:04]} e5 {[%emt 0:00:05]} 2. g3 {[%emt 0:00:18]} Nf6 {[%emt 0:00:29]} 3. Bg2 {[%emt 0:00:18]} Bc5 {[%emt 0:00:09]} 4. e3 {[%emt 0:05:41]} Nc6 {[%emt 0:03:43]} 5. a3 {[%emt 0:06:51]} a5 {[%emt 0:02:13]} 6. Nc3 {[%emt 0:07:16]} O-O {[%emt 0:00:59] The main line 6...0-0 scores better than 6...d6.} 7. Nge2 {[%emt 0:04:23] A25: English Opening vs King's Indian with ...Nc6 but without early d3.} Re8 {[%emt 0:02:52]} 8. O-O {[%emt 0:00:45]} h6 {[%emt 0:00:45]} 9. d3 {[%emt 0:05:19] White has an edge.} d6 {[%emt 0:04:40]} 10. h3 {[%emt 0:04:12]} Bd7 {[%emt 0:00:25]} 11. Kh2 {[%emt 0:01:47]} Qc8 {[%emt 0:04:16]} 12. b3 {[%emt 0:03:38]} Ne7 {[%emt 0:01:06] [#]} 13. e4 $146 {[%emt 0:05:17]} ({Predecessor:} 13. Bb2 Ba7 14. Qd2 c6 15. Ne4 Nxe4 16. dxe4 Qc7 17. Rfd1 Nc8 18. Rac1 Be6 19. Nc3 {½-½ (55) Kohlweyer,B (2429)-Janev,E (2428) Triesen 2005}) 13... c6 {[%emt 0:03:52]} 14. f4 {[%emt 0:05:44]} exf4 {[%emt 0:12:07] [#]} (14... Ng6 $11) 15. Bxf4 {[%emt 0:04:00]} (15. d4 $1 $16 {[%cal Rd4c5]} fxg3+ 16. Nxg3) 15... Ng6 $14 {[%emt 0:01:21]} 16. Bxh6 {[%emt 0:10:56][%cal Od3d4] d4! is the strong threat.} Ng4+ {[%emt 0:02:24]} (16... Re5 $1 $11 {keeps the balance.} 17. d4 Rh5 18. Bxg7 (18. dxc5 Rxh6 19. Rxf6 gxf6 $17) 18... Kxg7 19. Rxf6 (19. dxc5 Bxh3 20. Rxf6 Bxg2+ 21. Kxg2 Qh3+ 22. Kf2 Kxf6 $17) 19... Kxf6) 17. hxg4 $16 {[%emt 0:00:08][%cal Bh3g4,Bg4f5,Bf5e6][%mdl 32] Threatens to win with Bc1.} gxh6 {[%emt 0:00:09]} 18. d4 {[%emt 0:01:01] Against Ne5} Bb6 {[%emt 0:00:54][%cal Bc5b6,Bb6d8,Bd8g5][%mdl 32]} 19. Qd2 {[%emt 0:06:27] [#] Black must now prevent e5.} Kg7 {[%emt 0:00:37]} (19... Bxg4 $16 20. Qxh6 Re6) 20. Rf5 {[%emt 0:06:48]} Bd8 {[%emt 0:06:10]} 21. Raf1 {[%emt 0:00:44]} Bxf5 {[%emt 0:01:11]} 22. gxf5 {[%emt 0:00:18] aiming for Bh3.} Bg5 {[%emt 0:01:38]} 23. Qd3 $36 {[%emt 0:01:43][%mdl 3072] White has compensation. White is more active.} Nf8 {[%emt 0:05:50]} 24. Nf4 {[%emt 0:02:37]} f6 {[%emt 0:06:03]} (24... Qd8 $11) 25. Bh3 {[%emt 0:04:41] White is much more active.} Qd8 {[%emt 0:05:25]} (25... Bxf4 $142 26. gxf4 Kh8) 26. Ne6+ {[%emt 0:02:03]} Nxe6 {[%emt 0:00:27]} 27. fxe6 {[%emt 0:00:02]} Re7 {[%emt 0:03:13]} 28. Ne2 {[%emt 0:03:30][%cal Bc3e2,Be2d4,Bd4f3][%mdl 32]} Kh8 {[%emt 0:14:15]} (28... b5 $16 {was called for.}) 29. d5 $18 {[%emt 0:02:52]} Qc7 {[%emt 0:06:18]} (29... Qb6 {might work better.} 30. Nf4 Rg8) 30. Nd4 {[%emt 0:01:22]} Rh7 {[%emt 0:04:31]} 31. Bf5 {[%emt 0:02:17]} Rg7 {[%emt 0:01:06]} 32. Bh3 {[%emt 0:00:47]} Rh7 $1 {[%emt 0:00:26]} 33. Qc3 {[%emt 0:01:04]} Rf8 {[%emt 0:03:25]} 34. Nf3 {[%emt 0:01:12]} Rg7 {[%emt 0:00:45]} (34... cxd5 $16 35. exd5 b5) 35. Nd4 {[%emt 0:00:53]} Rh7 $1 {[%emt 0:01:03]} 36. Kg2 {[%emt 0:00:32]} Rg8 {[%emt 0:00:51]} 37. Nf3 {[%emt 0:00:32]} Rhg7 {[%emt 0:01:02]} (37... cxd5 {was necessary.} 38. exd5 Qe7) 38. Nxg5 {[%emt 0:00:27]} fxg5 {[%emt 0:01:17]} (38... Rxg5 $18 39. Qxf6+ Qg7 40. Qxg7+ R5xg7) 39. Rf6 {[%emt 0:00:31][%cal Rf6h6] White mates.} Re8 {[%emt 0:01:19]} 40. Rf7 {[%emt 0:00:23][%csl Gf7][%cal Rc3g7]} Kg8 {[%emt 0:00:37]} 41. Qxg7# {[%emt 0:30:05] Weighted Error Value: White=0.30/Black=0.49} 1-0

[Event "44th Chess Olympiad Women 2022"]
[Site "Chennai"]
[Date "2022.07.29"]
[Round "1.50"]
[White "Ter-Avetisjana, Agnesa Stepania"]
[Black "Alazmi, Aeshah"]
[Result "1-0"]
[ECO "C62"]
[WhiteElo "1962"]
[BlackElo "1256"]
[Annotator "TA"]
[PlyCount "95"]
[EventDate "2022.07.29"]
[EventType "team-tourn"]
[EventCountry "IND"]
[SourceTitle "playchess.com"]
[Source "ChessBase"]
[SourceQuality "1"]
[WhiteTeam "Latvia"]
[BlackTeam "Kuwait"]
[WhiteTeamCountry "LAT"]
[BlackTeamCountry "KUW"]
[TimeControl "40/5400+30:1800+30"]

{[%evp 14,94,48,60,92,73,67,57,56,62,97,92,97,75,143,87,74,33,612,609,683,682,656,672,662,630,695,685,5357,5310,5006,4910,2267,2195,29978,29979,29984,29985,29988,29989,29991,29992,29992,29993,29993,29993,29993,29994,29994,29995,29995,29996,29999,29997,29997,29998,29999,29997,29997,29997,29997,29997,29997,29997,29997,29997,29998,29999,29999,29998,29998,29997,29998,29999,29999,29997,29997,29998,29998,29998,29998,29999,29999]} 1. e4 e5 2. Nf3 Nc6 3. Bb5 d6 4. d4 Bd7 5. O-O Nxd4 6. Nxd4 exd4 7. Bxd7+ Qxd7 8. Qxd4 c5 {C62: Ruy Lopez: Steinitz Defence.} 9. Qd1 {White is more active.} O-O-O 10. c4 {[#]} Be7 $146 {White is slightly better.} ({Predecessor:} 10... h6 11. Nc3 Ne7 12. b3 a6 13. Nd5 Nxd5 14. exd5 Re8 15. Re1 Rxe1+ 16. Qxe1 g5 {0-1 (58) Kehayov,Y (766)-Bromo,A (1050) FICGS email 2014}) 11. Nc3 f5 12. exf5 Qxf5 13. Nd5 Bg5 (13... Kb8 $142) 14. Bxg5 (14. Qh5 $142 h6 15. Re1) 14... Qxg5 $16 15. b4 {[#] aiming for bxc5.} Ne7 $2 {[%mdl 8192] Black cannot hold the game after this.} (15... Nf6 $14) 16. f4 $18 Qh6 17. Nxe7+ Kb8 18. bxc5 dxc5 19. Nd5 {[%cal Be7d5,Bd5f4,Bf4e6,Be6c5][%mdl 32]} Rhf8 20. Rb1 Rxf4 21. Rxf4 Qxf4 22. Nxf4 {[%cal Rd1d8] [#]} Rxd1+ 23. Rxd1 {[%cal Bb1d1,Bd1d7,Bd7b7,Bb7h7][%mdl 32] White threatens Rd7 and mate.} a6 24. Rd7 {White mates.} g5 25. Ne6 h6 26. Nxc5 Kc8 27. Rxb7 g4 28. Rh7 g3 29. Nxa6 gxh2+ 30. Kh1 h5 31. c5 h4 32. c6 {[%cal Rh7h8]} h3 33. g4 {[%cal Rh7h8,Bg2g4,Bg4g5,Bg5g6][%mdl 32]} Kd8 34. g5 Kc8 35. g6 {[%cal Rh7h8]} Kd8 36. Nc5 Kc8 37. a4 {[%cal Ba2a4,Ba4a5,Ba5a6,Ba6a7,Ba7a8,Ba8b6,Bb6d7][%mdl 32]} Kd8 38. a5 Kc8 39. a6 Kd8 40. a7 {[%cal Ra7a8]} Kc8 41. a8=N {[%cal Rh7h8]} Kd8 42. Nb6 Ke8 43. c7 {[%cal Bc6c7,Bc7c8,Bc8e6][%mdl 32]} Kf8 44. c8=B Kg8 45. Be6+ Kf8 46. Nbd7+ Ke8 47. Nf6+ Kd8 48. Nb7# {Weighted Error Value: White=0.09 (flawless) /Black=0.84} 1-0

[Event "44th Chess Olympiad Women 2022"]
[Site "Chennai"]
[Date "2022.07.29"]
[Round "1.50"]
[White "Nema, Rabab Ahmed"]
[Black "Berzina, Ilze"]
[Result "0-1"]
[ECO "D31"]
[WhiteElo "1172"]
[BlackElo "2141"]
[Annotator "TA"]
[PlyCount "86"]
[EventDate "2022.07.29"]
[EventType "team-tourn"]
[EventCountry "IND"]
[SourceTitle "playchess.com"]
[Source "ChessBase"]
[SourceQuality "1"]
[WhiteTeam "Kuwait"]
[BlackTeam "Latvia"]
[WhiteTeamCountry "KUW"]
[BlackTeamCountry "LAT"]
[TimeControl "40/5400+30:1800+30"]

{[%evp 13,85,12,23,22,14,-70,-64,-94,-81,-118,-117,-109,-97,-137,-137,-147,-40,-81,-91,-148,-141,-287,-297,-266,-216,-790,-775,-770,-781,-817,-807,-877,-878,-810,-620,-713,-715,-735,-711,-712,-717,-793,-811,-1011,-1011,-1165,-1140,-3340,-2845,-2272,-2106,-1955,-1922,-29970,-11410,-29975,-29975,-29986,-29987,-29989,-29990,-29991,-29992,-29992,-29993,-29994,-29994,-29994,-29995,-29997,-29998,-29998,-29999,-29999]} 1. d4 {[%emt 0:00:45]} d5 {[%emt 0:00:35]} 2. c4 {[%emt 0:00:11]} c6 {[%emt 0:00:31]} 3. Nc3 {[%emt 0:00:11]} e6 {[%emt 0:01:07]} 4. Nf3 {[%emt 0:00:31]} dxc4 {[%emt 0:00:23]} 5. a4 {[%emt 0:01:05]} Bb4 {[%emt 0:00:30]} 6. e3 {[%emt 0:00:53]} b5 {[%emt 0:00:32]} 7. axb5 {[%emt 0:09:09]} cxb5 {[%emt 0:00:22]} 8. Bd2 {[%emt 0:03:07] D31: Queen's Gambit Declined: Semi-Slav without ...Nf6 (+ Marshall Gambit and Noteboom) and Exchange Variation lines without ...Nf6.} Bxc3 {[%emt 0:01:07]} 9. bxc3 {[%emt 0:00:42]} ({White should try} 9. Bxc3 $11 Qd5 10. Ne5) 9... Nf6 $15 {[%emt 0:01:54]} 10. Qc2 {[%emt 0:02:17] Black is slightly better.} Bb7 {[%emt 0:01:44]} 11. Be2 {[%emt 0:03:28]} O-O {[%emt 0:00:22]} 12. O-O {[%emt 0:00:39]} Nbd7 {[%emt 0:00:52][%cal Bb8d7,Bd7f6,Bf6d5,Bd5c3][%mdl 32] [#]} 13. Bc1 $146 {[%emt 0:03:13]} ({Predecessor:} 13. Rfb1 Be4 14. Qb2 Bxb1 15. Qxb1 a6 16. Ne1 e5 17. Nc2 Re8 18. Bf3 e4 19. Be2 {0-1 (39) Wibowo,P-Catur,A (2070) Yogyakarta 2016}) 13... Qc7 {[%emt 0:02:46]} 14. Nd2 {[%emt 0:04:22]} Nd5 {[%emt 0:05:32]} (14... e5 $17 {Threatens to win with ...exd4.} 15. Rb1 exd4 16. cxd4 a6) 15. e4 {[%emt 0:12:04]} Nf4 {[%emt 0:00:17]} 16. Nf3 {[%emt 0:03:51]} ({White should play} 16. Re1) 16... Nf6 $17 {[%emt 0:04:10] Black is more active.} 17. e5 {[%emt 0:10:07] [#] Now White is beyond hope.} (17. Bxf4 $17 Qxf4 18. e5) 17... Be4 $1 $19 {[%emt 0:03:20]} 18. Qb2 {[%emt 0:03:53]} N6d5 {[%emt 0:02:55] Pair of Knights!} 19. Rd1 $2 {[%emt 0:11:14]} (19. Bxf4 Nxf4 20. Rfe1) 19... Nxe2+ {[%emt 0:01:19]} 20. Qxe2 {[%emt 0:02:08]} Nxc3 {[%emt 0:00:13]} 21. Qe3 {[%emt 0:02:19]} Bxf3 {[%emt 0:00:34]} 22. Qxf3 {[%emt 0:00:31]} Nxd1 {[%emt 0:00:10]} 23. Qxd1 {[%emt 0:00:13]} f5 {[%emt 0:03:12]} 24. Ba3 {[%emt 0:01:52]} Rfd8 {[%emt 0:00:09]} 25. Bd6 {[%emt 0:00:21]} Rxd6 {[%emt 0:00:19]} 26. exd6 {[%emt 0:00:24]} Qxd6 {[%emt 0:00:10][%mdl 4096] Endgame KQR-KQR} 27. Qe2 {[%emt 0:04:05]} a5 {[%emt 0:03:47]} 28. Rb1 {[%emt 0:02:43]} Qd5 {[%emt 0:01:11] ...b4 is the strong threat.} 29. Re1 {[%emt 0:03:26]} b4 {[%emt 0:01:33]} 30. Qxe6+ {[%emt 0:00:17]} Qxe6 {[%emt 0:00:06]} 31. Rxe6 {[%emt 0:00:09] KR-KR} Rd8 {[%emt 0:00:18] [#] White must now prevent ...c3.} 32. Kf1 {[%emt 0:02:43]} Rxd4 {[%emt 0:00:10] aiming for ...c3.} 33. Ra6 {[%emt 0:00:51]} c3 {[%emt 0:00:15] ( -> ...c2)} 34. Rc6 {[%emt 0:00:53]} b3 {[%emt 0:00:29] Black mates.} 35. Rxc3 {[%emt 0:00:38]} b2 {[%emt 0:00:10]} 36. Rb3 {[%emt 0:00:28]} Rb4 {[%emt 0:00:11]} 37. Rxb4 {[%emt 0:01:41]} axb4 {[%emt 0:00:07] KP-KP} 38. Ke2 {[%emt 0:00:35]} b1=Q {[%emt 0:00:11]} 39. f4 {[%emt 0:00:13]} Qc2+ {[%emt 0:00:17]} 40. Kf3 {[%emt 0:00:17]} Qe4+ {[%emt 0:00:39]} 41. Kg3 {[%emt 0:30:23]} Qe3+ {[%emt 0:30:15]} 42. Kh4 {[%emt 0:00:17]} Qxf4+ {[%emt 0:00:09]} 43. Kh3 {[%emt 0:00:31]} Qg4# {[%emt 0:00:38] Weighted Error Value: White=1.02/Black=0.19 (very precise)} 0-1